[Event "SS Manhem Chess Week GM and IM tournaments 2018"]
[Site "Molnlycke kulturhus, Biblioteksgatan 2, Molnlycke, Sweden"]
[Date "2018.08.17"]
[Round "9.2"]
[White "Rozentalis, Eduardas"]
[Black "Schneider, Stefan"]
[Result "1-0"]
[TimeControl "90 minutes for 40 moves + 30 minutes for the rest of the game + 30 seconds per move from move one."]
[WhiteTitle "GM"]
[BlackTitle "IM"]
[WhiteFideId "12800023"]
[BlackFideId "1703013"]
[WhiteElo "2503"]
[BlackElo "2399"]

1. e4 {[%clk 01:30:58]} {[%emt 00:00:01]} c6 {[%clk 01:30:53]} {[%emt
00:00:07]} 2. Nc3 {[%clk 01:29:22]} {[%emt 00:02:06]} d5 {[%clk 01:31:05]}
{[%emt 00:00:18]} 3. Nf3 {[%clk 01:29:26]} {[%emt 00:00:25]} Bg4 {[%clk
01:31:31]} {[%emt 00:00:05]} 4. h3 {[%clk 01:29:51]} {[%emt 00:00:05]} Bxf3
{[%clk 01:31:50]} {[%emt 00:00:11]} 5. Qxf3 {[%clk 01:30:17]} {[%emt 00:00:05]}
e6 {[%clk 01:32:03]} {[%emt 00:00:18]} 6. a3 {[%clk 01:28:00]} {[%emt
00:02:47]} Nd7 {[%clk 01:31:50]} {[%emt 00:00:43]} 7. d3 {[%clk 01:27:15]}
{[%emt 00:01:14]} Ngf6 {[%clk 01:31:12]} {[%emt 00:01:07]} 8. g3 {[%clk
01:27:01]} {[%emt 00:00:44]} g6 {[%clk 01:26:53]} {[%emt 00:04:49]} 9. Bg2
{[%clk 01:26:26]} {[%emt 00:01:05]} Bg7 {[%clk 01:27:15]} {[%emt 00:00:09]} 10.
O-O {[%clk 01:26:24]} {[%emt 00:00:32]} O-O {[%clk 01:27:32]} {[%emt 00:00:13]}
11. Qe2 {[%clk 01:26:33]} {[%emt 00:00:20]} Qb6 {[%clk 01:23:04]} {[%emt
00:04:58]} 12. Kh2 {[%clk 01:21:49]} {[%emt 00:05:12]} Ne8 {[%clk 01:15:04]}
{[%emt 00:08:32]} 13. f4 {[%clk 01:19:34]} {[%emt 00:02:46]} Nc7 {[%clk
00:59:54]} {[%emt 00:15:40]} 14. Nd1 {[%clk 01:13:34]} {[%emt 00:06:29]} Rae8
{[%clk 00:56:09]} {[%emt 00:04:15]} 15. Be3 {[%clk 01:09:29]} {[%emt 00:04:36]}
c5 {[%clk 00:47:14]} {[%emt 00:09:25]} 16. Rb1 {[%clk 01:03:33]} {[%emt
00:06:25]} Nb5 {[%clk 00:39:54]} {[%emt 00:07:52]} 17. Nf2 {[%clk 00:59:20]}
{[%emt 00:04:42]} Nd4 {[%clk 00:39:00]} {[%emt 00:01:24]} 18. Qd1 {[%clk
00:59:01]} {[%emt 00:00:48]} Qc7 {[%clk 00:32:08]} {[%emt 00:07:23]} 19. c3
{[%clk 00:55:02]} {[%emt 00:04:28]} Nc6 {[%clk 00:32:31]} {[%emt 00:00:06]} 20.
e5 {[%clk 00:54:07]} {[%emt 00:01:25]} h5 {[%clk 00:23:16]} {[%emt 00:09:46]}
21. d4 {[%clk 00:53:19]} {[%emt 00:01:18]} Na5 {[%clk 00:22:47]} {[%emt
00:00:59]} 22. b3 {[%clk 00:49:43]} {[%emt 00:04:06]} cxd4 {[%clk 00:22:53]}
{[%emt 00:00:24]} 23. cxd4 {[%clk 00:49:47]} {[%emt 00:00:25]} Rc8 {[%clk
00:20:44]} {[%emt 00:02:38]} 24. Qd3 {[%clk 00:42:45]} {[%emt 00:07:32]} Qc3
{[%clk 00:15:21]} {[%emt 00:05:53]} 25. Qxc3 {[%clk 00:41:49]} {[%emt
00:01:26]} Rxc3 {[%clk 00:15:36]} {[%emt 00:00:15]} 26. Bd2 {[%clk 00:42:12]}
{[%emt 00:00:07]} Rfc8 {[%clk 00:12:12]} {[%emt 00:03:54]} 27. Bxc3 {[%clk
00:41:11]} {[%emt 00:01:31]} Rxc3 {[%clk 00:12:40]} {[%emt 00:00:02]} 28. Rfc1
{[%clk 00:39:40]} {[%emt 00:02:00]} Re3 {[%clk 00:08:11]} {[%emt 00:05:00]} 29.
Bf1 {[%clk 00:33:32]} {[%emt 00:06:37]} Nb6 {[%clk 00:06:17]} {[%emt 00:02:24]}
30. Kg2 {[%clk 00:28:06]} {[%emt 00:05:56]} Nc6 {[%clk 00:05:53]} {[%emt
00:00:55]} 31. Rd1 {[%clk 00:24:41]} {[%emt 00:03:54]} Rc3 {[%clk 00:06:16]}
{[%emt 00:00:07]} 32. Bb5 {[%clk 00:22:26]} {[%emt 00:02:45]} Na5 {[%clk
00:02:01]} {[%emt 00:04:44]} 33. Rdc1 {[%clk 00:21:42]} {[%emt 00:01:14]} Rxc1
{[%clk 00:00:58]} {[%emt 00:01:34]} 34. Rxc1 {[%clk 00:21:08]} {[%emt
00:01:04]} Nxb3 {[%clk 00:01:26]} {[%emt 00:00:02]} 35. Rc7 {[%clk 00:21:10]}
{[%emt 00:00:28]} Nxd4 {[%clk 00:01:07]} {[%emt 00:00:49]} 36. Be8 {[%clk
00:19:00]} {[%emt 00:02:40]} f5 {[%clk 00:00:41]} {[%emt 00:00:56]} 37. Bxg6
{[%clk 00:18:14]} {[%emt 00:01:16]} 1-0

[Event "SS Manhem Chess Week GM and IM tournaments 2018"]
[Site "Molnlycke kulturhus, Biblioteksgatan 2, Molnlycke, Sweden"]
[Date "2018.08.17"]
[Round "9.5"]
[White "Lindberg, Bengt"]
[Black "Johansson, Linus"]
[Result "1/2-1/2"]
[TimeControl "90 minutes for 40 moves + 30 minutes for the rest of the game + 30 seconds per move from move one."]
[WhiteTitle "IM"]
[BlackTitle "IM"]
[WhiteFideId "1700359"]
[BlackFideId "1711113"]
[WhiteElo "2416"]
[BlackElo "2457"]

1. e4 {[%clk 01:30:57]} {[%emt 00:00:01]} Nc6 {[%clk 01:30:57]} {[%emt
00:00:04]} 2. Nf3 {[%clk 01:31:14]} {[%emt 00:00:12]} d6 {[%clk 01:31:24]}
{[%emt 00:00:04]} 3. d4 {[%clk 01:31:26]} {[%emt 00:00:18]} Nf6 {[%clk
01:31:52]} {[%emt 00:00:03]} 4. Nc3 {[%clk 01:31:37]} {[%emt 00:00:18]} g6
{[%clk 01:32:19]} {[%emt 00:00:03]} 5. h3 {[%clk 01:30:23]} {[%emt 00:01:43]}
Bg7 {[%clk 01:32:46]} {[%emt 00:00:05]} 6. Be3 {[%clk 01:22:48]} {[%emt
00:08:05]} O-O {[%clk 01:32:59]} {[%emt 00:00:17]} 7. d5 {[%clk 01:20:53]}
{[%emt 00:02:24]} Nb8 {[%clk 01:32:20]} {[%emt 00:01:09]} 8. Bc4 {[%clk
01:20:30]} {[%emt 00:00:52]} e5 {[%clk 01:28:46]} {[%emt 00:04:05]} 9. dxe6
{[%clk 01:18:51]} {[%emt 00:02:09]} Bxe6 {[%clk 01:29:12]} {[%emt 00:00:05]} 10.
Bxe6 {[%clk 01:18:20]} {[%emt 00:01:01]} fxe6 {[%clk 01:29:38]} {[%emt
00:00:04]} 11. O-O {[%clk 01:16:02]} {[%emt 00:02:48]} 1/2-1/2

[Event "SS Manhem Chess Week GM and IM tournaments 2018"]
[Site "Molnlycke kulturhus, Biblioteksgatan 2, Molnlycke, Sweden"]
[Date "2018.08.17"]
[Round "9.6"]
[White "Antonsen, Mikkel"]
[Black "Vypkhaniuk, Ihor"]
[Result "1-0"]
[TimeControl "90 minutes for 40 moves + 30 minutes for the rest of the game + 30 seconds per move from move one."]
[WhiteTitle "IM"]
[BlackTitle "FM"]
[WhiteFideId "1401378"]
[BlackFideId "14112256"]
[WhiteElo "2444"]
[BlackElo "2357"]

1. d4 {[%clk 01:30:56]} {[%emt 00:00:03]} d6 {[%clk 01:30:48]} {[%emt
00:00:12]} 2. e4 {[%clk 01:30:44]} {[%emt 00:00:42]} Nf6 {[%clk 01:31:05]}
{[%emt 00:00:14]} 3. f3 {[%clk 01:28:09]} {[%emt 00:03:05]} e5 {[%clk
01:31:16]} {[%emt 00:00:19]} 4. d5 {[%clk 01:28:29]} {[%emt 00:00:11]} Be7
{[%clk 01:31:10]} {[%emt 00:00:35]} 5. Be3 {[%clk 01:28:16]} {[%emt 00:00:43]}
c6 {[%clk 01:31:24]} {[%emt 00:00:16]} 6. c4 {[%clk 01:28:41]} {[%emt
00:00:05]} O-O {[%clk 01:29:43]} {[%emt 00:02:10]} 7. Nc3 {[%clk 01:28:33]}
{[%emt 00:00:39]} a6 {[%clk 01:29:00]} {[%emt 00:01:13]} 8. Bd3 {[%clk
01:24:47]} {[%emt 00:04:16]} cxd5 {[%clk 01:14:45]} {[%emt 00:14:46]} 9. cxd5
{[%clk 01:24:37]} {[%emt 00:00:39]} b5 {[%clk 01:08:48]} {[%emt 00:06:27]} 10.
Nge2 {[%clk 01:24:41]} {[%emt 00:00:26]} Nbd7 {[%clk 01:06:27]} {[%emt
00:02:51]} 11. b4 {[%clk 01:23:42]} {[%emt 00:01:30]} Nb6 {[%clk 00:58:46]}
{[%emt 00:08:11]} 12. a4 {[%clk 01:24:03]} {[%emt 00:00:09]} Nc4 {[%clk
00:57:54]} {[%emt 00:01:22]} 13. Bxc4 {[%clk 01:24:22]} {[%emt 00:00:11]} bxc4
{[%clk 00:58:22]} {[%emt 00:00:02]} 14. O-O {[%clk 01:22:16]} {[%emt 00:02:35]}
Rb8 {[%clk 00:47:30]} {[%emt 00:11:23]} 15. b5 {[%clk 01:22:07]} {[%emt
00:00:39]} Nd7 {[%clk 00:44:53]} {[%emt 00:03:06]} 16. f4 {[%clk 01:16:54]}
{[%emt 00:05:43]} exf4 {[%clk 00:34:29]} {[%emt 00:10:54]} 17. Bxf4 {[%clk
01:17:07]} {[%emt 00:00:17]} axb5 {[%clk 00:32:33]} {[%emt 00:02:26]} 18. axb5
{[%clk 01:16:53]} {[%emt 00:00:45]} Nc5 {[%clk 00:32:39]} {[%emt 00:00:24]} 19.
Nd4 {[%clk 01:15:46]} {[%emt 00:01:37]} Bf6 {[%clk 00:27:21]} {[%emt 00:05:47]}
20. Be3 {[%clk 01:14:27]} {[%emt 00:01:49]} Bd7 {[%clk 00:27:21]} {[%emt
00:00:30]} 21. Ra3 {[%clk 01:07:16]} {[%emt 00:07:41]} Re8 {[%clk 00:25:18]}
{[%emt 00:02:33]} 22. Nc6 {[%clk 01:04:51]} {[%emt 00:02:55]} Bxc6 {[%clk
00:24:59]} {[%emt 00:00:48]} 23. dxc6 {[%clk 01:03:14]} {[%emt 00:02:08]} Nxe4
{[%clk 00:15:53]} {[%emt 00:09:36]} 24. Nxe4 {[%clk 00:58:04]} {[%emt
00:05:41]} Rxe4 {[%clk 00:16:18]} {[%emt 00:00:05]} 25. Qd5 {[%clk 00:58:30]}
{[%emt 00:00:04]} Rxe3 {[%clk 00:11:46]} {[%emt 00:05:02]} 26. Rxe3 {[%clk
00:58:29]} {[%emt 00:00:31]} Qb6 {[%clk 00:12:09]} {[%emt 00:00:07]} 27. Rff3
{[%clk 00:50:29]} {[%emt 00:08:29]} c3 {[%clk 00:07:10]} {[%emt 00:05:29]} 28.
Kh1 {[%clk 00:46:50]} {[%emt 00:04:10]} c2 {[%clk 00:07:28]} {[%emt 00:00:12]}
29. Re1 {[%clk 00:47:15]} {[%emt 00:00:05]} Qa5 {[%clk 00:06:19]} {[%emt
00:01:40]} 30. Rff1 {[%clk 00:45:04]} {[%emt 00:02:41]} h6 {[%clk 00:05:04]}
{[%emt 00:01:45]} 31. h3 {[%clk 00:34:56]} {[%emt 00:10:38]} Rxb5 {[%clk
00:03:17]} {[%emt 00:02:18]} 32. Re8+ {[%clk 00:34:44]} {[%emt 00:00:42]} Kh7
{[%clk 00:03:46]} 33. Qd3+ {[%clk 00:34:39]} {[%emt 00:00:35]} g6 {[%clk
00:04:15]} {[%emt 00:00:01]} 34. Qxc2 {[%clk 00:34:57]} {[%emt 00:00:12]} Rc5
{[%clk 00:04:14]} {[%emt 00:00:32]} 35. Qb3 {[%clk 00:35:02]} {[%emt 00:00:25]}
Kg7 {[%clk 00:04:10]} {[%emt 00:00:34]} 36. Qb8 {[%clk 00:34:09]} {[%emt
00:01:23]} Qa6 {[%clk 00:02:32]} {[%emt 00:02:08]} 37. Rd1 {[%clk 00:30:32]}
{[%emt 00:04:07]} Qxc6 {[%clk 00:02:19]} {[%emt 00:00:44]} 38. Rh8 {[%clk
00:30:55]} {[%emt 00:00:07]} Be7 {[%clk 00:01:11]} {[%emt 00:01:38]} 39. Qg8+
{[%emt 00:00:32]} Kf6 40. Rh7 {[%clk 00:30:10]} {[%emt 00:01:13]} Kg5 {[%clk
00:00:33]} {[%emt 00:01:38]} 41. Qxf7 {[%clk 00:29:39]} {[%emt 00:01:01]} Re5
{[%clk 00:23:45]} {[%emt 00:07:18]} 42. Rf1 {[%clk 00:55:29]} {[%emt 00:04:40]}
Re2 {[%clk 00:20:22]} {[%emt 00:03:52]} 43. Qf4+ {[%clk 00:55:32]} {[%emt
00:00:26]} 1-0

[Event "SS Manhem Chess Week GM and IM tournaments 2018"]
[Site "Molnlycke kulturhus, Biblioteksgatan 2, Molnlycke, Sweden"]
[Date "2018.08.17"]
[Round "9.7"]
[White "Mikalsen, Erlend"]
[Black "Nedilko, Vasily"]
[Result "1/2-1/2"]
[TimeControl "90 minutes for 40 moves + 30 minutes for the rest of the game + 30 seconds per move from move one."]
[WhiteTitle "FM"]
[BlackTitle "IM"]
[WhiteFideId "1507338"]
[BlackFideId "14101459"]
[WhiteElo "2289"]
[BlackElo "2369"]

1. e4 {[%clk 01:30:57]} {[%emt 00:00:06]} c5 {[%clk 01:29:36]} {[%emt
00:01:25]} 2. Nf3 {[%clk 01:31:23]} {[%emt 00:00:03]} d6 {[%clk 01:30:01]}
{[%emt 00:00:05]} 3. d4 {[%clk 01:31:51]} {[%emt 00:00:02]} cxd4 {[%clk
01:30:26]} {[%emt 00:00:06]} 4. Nxd4 {[%clk 01:32:18]} {[%emt 00:00:02]} Nf6
{[%clk 01:30:51]} {[%emt 00:00:05]} 5. Nc3 {[%clk 01:32:46]} {[%emt 00:00:02]}
a6 {[%clk 01:31:17]} {[%emt 00:00:05]} 6. Bc4 {[%clk 01:33:13]} {[%emt
00:00:02]} e6 {[%clk 01:31:41]} {[%emt 00:00:06]} 7. Bb3 {[%clk 01:33:40]}
{[%emt 00:00:03]} Nbd7 {[%clk 01:32:04]} {[%emt 00:00:07]} 8. f4 {[%clk
01:34:05]} {[%emt 00:00:05]} Nc5 {[%clk 01:32:23]} {[%emt 00:00:11]} 9. f5
{[%clk 01:34:31]} {[%emt 00:00:04]} b5 {[%clk 01:14:30]} {[%emt 00:18:23]} 10.
Qf3 {[%clk 01:14:33]} {[%emt 00:20:28]} e5 {[%clk 01:09:36]} {[%emt 00:05:25]}
11. Nc6 {[%clk 01:13:04]} {[%emt 00:01:59]} Qd7 {[%clk 01:06:38]} {[%emt
00:03:28]} 12. Nb4 {[%clk 01:12:17]} {[%emt 00:01:16]} Bb7 {[%clk 01:07:06]}
{[%emt 00:00:03]} 13. Nbd5 {[%clk 01:12:04]} {[%emt 00:00:42]} Ncxe4 {[%clk
01:04:47]} {[%emt 00:02:49]} 14. Nxe4 {[%clk 01:01:40]} {[%emt 00:10:55]} Nxd5
{[%clk 01:05:04]} {[%emt 00:00:12]} 15. Bg5 {[%clk 01:01:19]} {[%emt 00:00:51]}
Nb6 {[%clk 01:00:00]} {[%emt 00:05:33]} 16. O-O-O {[%clk 01:00:44]} {[%emt
00:01:06]} Nc4 {[%clk 00:48:50]} {[%emt 00:11:40]} 17. Rhe1 {[%clk 00:50:10]}
{[%emt 00:11:03]} Qc7 {[%clk 00:39:58]} {[%emt 00:09:21]} 18. f6 {[%clk
00:35:00]} {[%emt 00:15:41]} g6 {[%clk 00:39:35]} {[%emt 00:00:53]} 19. Qd3
{[%clk 00:30:24]} {[%emt 00:05:05]} O-O-O {[%clk 00:34:42]} {[%emt 00:05:25]}
20. a4 {[%clk 00:29:23]} {[%emt 00:01:30]} d5 {[%clk 00:31:57]} {[%emt
00:03:15]} 21. axb5 {[%clk 00:29:43]} {[%emt 00:00:10]} axb5 {[%clk 00:32:19]}
{[%emt 00:00:09]} 22. Nc3 {[%clk 00:30:08]} {[%emt 00:00:04]} Bb4 {[%clk
00:25:59]} {[%emt 00:06:50]} 23. Nxb5 {[%clk 00:28:57]} {[%emt 00:01:40]} Qa5
{[%clk 00:26:09]} {[%emt 00:00:20]} 24. c3 {[%clk 00:29:17]} {[%emt 00:00:11]}
Qxb5 {[%clk 00:23:58]} {[%emt 00:02:41]} 25. cxb4 {[%clk 00:29:33]} {[%emt
00:00:14]} Qxb4 {[%clk 00:21:49]} {[%emt 00:02:39]} 26. Bxc4 {[%clk 00:25:59]}
{[%emt 00:04:03]} Qxc4+ {[%clk 00:18:20]} {[%emt 00:03:59]} 27. Qxc4+ {[%clk
00:26:22]} {[%emt 00:00:08]} dxc4 {[%clk 00:18:49]} {[%emt 00:00:01]} 28. Rxe5
{[%clk 00:26:05]} {[%emt 00:00:47]} Rxd1+ {[%clk 00:17:41]} {[%emt 00:01:38]}
29. Kxd1 {[%clk 00:26:29]} {[%emt 00:00:06]} Rd8+ {[%clk 00:17:07]} {[%emt
00:01:03]} 30. Kc2 {[%clk 00:24:42]} {[%emt 00:02:17]} Bxg2 {[%clk 00:11:36]}
{[%emt 00:06:01]} 31. Rc5+ {[%clk 00:25:05]} {[%emt 00:00:08]} Kd7 {[%clk
00:11:56]} {[%emt 00:00:09]} 32. Rxc4 {[%clk 00:25:30]} {[%emt 00:00:06]}
1/2-1/2

[Event "SS Manhem Chess Week GM and IM tournaments 2018"]
[Site "Molnlycke kulturhus, Biblioteksgatan 2, Molnlycke, Sweden"]
[Date "2018.08.17"]
[Round "9.9"]
[White "Pantzar, Milton"]
[Black "Rydstrom, Tom"]
[Result "1-0"]
[TimeControl "90 minutes for 40 moves + 30 minutes for the rest of the game + 30 seconds per move from move one."]
[WhiteTitle "FM"]
[BlackTitle "FM"]
[WhiteFideId "1721003"]
[BlackFideId "1714830"]
[WhiteElo "2306"]
[BlackElo "2316"]

1. c4 {[%clk 01:30:56]} {[%emt 00:00:04]} e5 {[%clk 01:30:39]} {[%emt
00:00:21]} 2. Nc3 {[%clk 01:31:12]} {[%emt 00:00:14]} Bb4 {[%clk 01:30:42]}
{[%emt 00:00:27]} 3. Nd5 {[%clk 01:28:42]} {[%emt 00:03:00]} a5 {[%clk
01:30:45]} {[%emt 00:00:27]} 4. a3 {[%clk 01:17:18]} {[%emt 00:11:54]} Bc5
{[%clk 01:30:53]} {[%emt 00:00:22]} 5. e3 {[%clk 01:17:11]} {[%emt 00:00:38]}
Nf6 {[%clk 01:29:50]} {[%emt 00:01:33]} 6. d4 {[%clk 01:08:32]} {[%emt
00:09:10]} Nxd5 {[%clk 01:27:20]} {[%emt 00:03:00]} 7. cxd5 {[%clk 01:04:15]}
{[%emt 00:04:46]} exd4 {[%clk 01:25:13]} {[%emt 00:02:37]} 8. exd4 {[%clk
01:04:29]} {[%emt 00:00:16]} Be7 {[%clk 01:25:04]} {[%emt 00:00:35]} 9. Bd3
{[%clk 01:02:13]} {[%emt 00:02:50]} d6 {[%clk 01:24:17]} {[%emt 00:01:18]} 10.
Ne2 {[%clk 00:52:30]} {[%emt 00:10:13]} Nd7 {[%clk 01:15:18]} {[%emt 00:09:29]}
11. O-O {[%clk 00:50:51]} {[%emt 00:02:09]} Nf6 {[%clk 01:12:30]} {[%emt
00:03:18]} 12. Nc3 {[%clk 00:50:32]} {[%emt 00:00:49]} O-O {[%clk 01:11:54]}
{[%emt 00:01:06]} 13. Bd2 {[%clk 00:47:41]} {[%emt 00:03:21]} Bg4 {[%clk
01:10:27]} {[%emt 00:01:53]} 14. Qb3 {[%clk 00:41:48]} {[%emt 00:06:27]} Qd7
{[%clk 00:59:14]} {[%emt 00:11:43]} 15. Rac1 {[%clk 00:39:47]} {[%emt
00:02:31]} Rab8 {[%clk 00:45:37]} {[%emt 00:14:08]} 16. Qc2 {[%clk 00:35:45]}
{[%emt 00:04:33]} Bh5 {[%clk 00:41:42]} {[%emt 00:04:24]} 17. Bf5 {[%clk
00:29:42]} {[%emt 00:06:33]} Qd8 {[%clk 00:41:39]} {[%emt 00:00:32]} 18. Rfe1
{[%clk 00:24:36]} {[%emt 00:05:38]} c6 {[%clk 00:29:56]} {[%emt 00:12:12]} 19.
dxc6 {[%clk 00:22:26]} {[%emt 00:02:41]} bxc6 {[%clk 00:30:24]} {[%emt
00:00:02]} 20. Na4 {[%clk 00:21:07]} {[%emt 00:01:49]} c5 {[%clk 00:19:34]}
{[%emt 00:11:20]} 21. dxc5 {[%clk 00:19:44]} {[%emt 00:01:53]} dxc5 {[%clk
00:19:50]} {[%emt 00:00:13]} 22. Bf4 {[%clk 00:14:44]} {[%emt 00:05:31]} Rb7
{[%clk 00:19:46]} {[%emt 00:00:33]} 23. Nxc5 {[%clk 00:13:57]} {[%emt
00:01:18]} Bxc5 {[%clk 00:19:25]} {[%emt 00:00:51]} 24. Qxc5 {[%clk 00:14:21]}
{[%emt 00:00:06]} Rxb2 {[%clk 00:19:53]} {[%emt 00:00:02]} 25. Bd6 {[%clk
00:11:18]} {[%emt 00:03:33]} Re8 {[%clk 00:19:19]} {[%emt 00:01:03]} 26. Rxe8+
{[%clk 00:11:35]} {[%emt 00:00:14]} Qxe8 {[%clk 00:17:38]} {[%emt 00:02:11]} 27.
Qxa5 {[%clk 00:07:33]} {[%emt 00:04:32]} Rb5 {[%clk 00:14:01]} {[%emt
00:04:06]} 28. Qa6 {[%clk 00:06:30]} {[%emt 00:01:34]} Be2 {[%clk 00:01:50]}
{[%emt 00:12:40]} 29. Rc8 {[%clk 00:04:41]} {[%emt 00:02:19]} Rb1+ {[%clk
00:01:51]} {[%emt 00:00:29]} 30. Bxb1 {[%clk 00:05:06]} {[%emt 00:00:06]} Bxa6
{[%clk 00:02:18]} {[%emt 00:00:02]} 31. Rxe8+ {[%clk 00:05:30]} {[%emt
00:00:06]} Nxe8 {[%clk 00:02:45]} {[%emt 00:00:03]} 32. Bc5 {[%clk 00:04:52]}
{[%emt 00:01:08]} Nc7 {[%clk 00:02:49]} {[%emt 00:00:26]} 33. a4 {[%clk
00:04:40]} {[%emt 00:00:42]} g6 {[%clk 00:03:14]} {[%emt 00:00:05]} 34. f4
{[%clk 00:02:19]} {[%emt 00:02:50]} Kg7 {[%clk 00:03:40]} {[%emt 00:00:04]} 35.
Bd4+ {[%clk 00:02:32]} {[%emt 00:00:18]} Kf8 {[%clk 00:04:02]} {[%emt
00:00:04]} 36. Kf2 {[%clk 00:02:10]} {[%emt 00:00:55]} Ke7 {[%clk 00:04:28]}
{[%emt 00:00:05]} 37. Ba2 {[%clk 00:01:11]} {[%emt 00:01:29]} Ne6 {[%clk
00:04:42]} {[%emt 00:00:14]} 38. Be3 {[%clk 00:01:33]} {[%emt 00:00:09]} Kd6
{[%clk 00:05:11]} {[%emt 00:00:01]} 39. g4 {[%clk 00:01:02]} {[%emt 00:01:00]}
f6 {[%clk 00:04:48]} {[%emt 00:00:53]} 40. h4 {[%clk 00:00:37]} {[%emt
00:00:55]} Nc5 {[%clk 00:04:59]} {[%emt 00:00:20]} 41. Bxc5+ {[%clk 00:26:12]}
{[%emt 00:04:56]} Kxc5 {[%clk 00:35:27]} {[%emt 00:00:02]} 42. g5 {[%clk
00:26:22]} {[%emt 00:00:19]} fxg5 {[%clk 00:35:53]} {[%emt 00:00:04]} 43. fxg5
{[%clk 00:26:11]} {[%emt 00:00:41]} Kd4 {[%clk 00:34:44]} {[%emt 00:01:38]} 44.
Bg8 {[%clk 00:22:44]} {[%emt 00:03:58]} Ke4 {[%clk 00:35:00]} {[%emt 00:00:14]}
45. Kg3 {[%clk 00:23:10]} {[%emt 00:00:04]} Kf5 {[%clk 00:35:06]} {[%emt
00:00:24]} 46. Bxh7 {[%clk 00:23:21]} {[%emt 00:00:19]} Bc4 {[%clk 00:35:16]}
{[%emt 00:00:20]} 47. a5 {[%clk 00:23:46]} {[%emt 00:00:06]} Ba6 {[%clk
00:35:43]} {[%emt 00:00:03]} 48. Bg8 {[%clk 00:24:04]} {[%emt 00:00:11]} Bb5
{[%clk 00:36:08]} {[%emt 00:00:05]} 49. Bb3 {[%clk 00:24:12]} {[%emt 00:00:22]}
Bd3 {[%clk 00:35:52]} {[%emt 00:00:46]} 50. Bd1 {[%clk 00:23:05]} {[%emt
00:01:38]} Ke5 {[%clk 00:35:29]} {[%emt 00:00:53]} 51. Kf3 {[%clk 00:22:56]}
{[%emt 00:00:39]} Kf5 {[%clk 00:35:44]} {[%emt 00:00:16]} 52. Be2 {[%clk
00:22:57]} {[%emt 00:00:29]} Be4+ {[%clk 00:36:12]} {[%emt 00:00:02]} 53. Kg3
{[%clk 00:23:14]} {[%emt 00:00:13]} Ke5 {[%clk 00:36:15]} {[%emt 00:00:27]} 54.
a6 {[%clk 00:23:37]} {[%emt 00:00:07]} 1-0